Cogmind - Beta 11 X8 @@@ ROGUE MODE // 2021.11.12 @ 20:01:51 Player: Captain Croissandwich Result: Destroyed by Y-64 Sentinel with KE Penetrator Performance ------------- Evolutions (6) 3000 Regions Visited (20) 4000 Robots Destroyed (350) 1750 Value Destroyed (14005) 14005 Prototype IDs (47) 940 Alien Tech Used (0) 0 Bonus (2338) 2338 TOTAL SCORE: 26033 Bonus ------- High Alert Combat Kills 1507 Follower Combat Kills 2335 Network Hubs Disabled 400 Aligned with FarCom 300 Met Imprinter 300 Was Imprinted 300 Met R17 at Cetus 500 Friendly Fire -3304 Cogmind --------- Core Integrity 0/1150 Matter 73/300 Energy 92/170 System Corruption 13% Temperature Cool (9) Movement Hovering (540) Ox8 Location -4/Factory Parts ------- > --- POWER (2) -------- Micro Fission Core > --- PROPULSION (5) --- Antigrav System > --- UTILITY (9) ------ Huge Storage Unit Enhanced Optical Array Advanced Signal Interpreter > --- WEAPON (3) ------- Master Tearclaws > --- INVENTORY (25) --- Light Antimatter Reactor Advanced Power Amplifier Advanced Cooling System Authchip [Propulsion] Authchip [Propulsion] XL Autogun Array Tesla Bomb Launcher Self-destruct Interrupter (27) Peak State ------------ > --- POWER ------------ Micro Fission Core Quantum Reactor > --- PROPULSION ------- Centrium Heavy Treads Centrium Heavy Treads > --- UTILITY ---------- Advanced Cooling System Huge Storage Unit Enhanced Optical Array Experimental Sensor Array Advanced Signal Interpreter Improved Medium Armor Plating Centrium Medium Armor Plating Centrium Medium Armor Plating Medium Regenerative Plating > --- WEAPON ----------- Improved KE Penetrator Hypervelocity Gauss Cannon Hypervelocity Gauss Cannon > --- INVENTORY -------- Centrium Heavy Treads Centrium Heavy Treads Advanced Power Amplifier Advanced Cooling System Authchip [Propulsion] Authchip [Propulsion] Improved KE Penetrator XL Autogun Array 8R-AWN's Boregun Tesla Bomb Launcher Neutron Missile Launcher Neutron Missile Launcher Neutron Missile Launcher Improved Plasma Cutter Master Tearclaws Self-destruct Interrupter [Rating: 142] Favorites ----------- Power Light Fission Core Engine Ion Engine Power Core Light Fission Core Reactor Cold Fusion Reactor Propulsion Light Treads Treads Light Treads Leg Aluminum Leg Wheel Compact Wheel Hover Unit Aerolev Unit Flight Unit Flight Unit Utility Advanced Melee Analysis Suite Device Advanced Heat Sink Storage Huge Storage Unit Processor Advanced Melee Analysis Suite Hackware System Shield Protection Improved Medium Armor Plating Weapon KE Penetrator Energy Gun Wave Gun Energy Cannon Plasma Cannon Ballistic Gun KE Penetrator Ballistic Cannon Hypervelocity Gauss Cannon Launcher Missile Launcher Special Weapon Improved Plasma Cutter Impact Weapon Heavy Mace Slashing Weapon Longsword +1 Piercing Weapon CR-A16's Behemoth Slayer Build | -11 -10 -10 -9 -9 -9 -8 -8 -8 -7 -6 -6 -6 -6 -5 -5 -5 -5 -5 -5 -4 ------- Run | Scr Mat Min Mat Min Exi Min Mat Sto Fac Fac Low Low Zio Pro Fac Ext Cet Arc Hub Fac Slots Evolved 12 | . . . 2 . . . 2 . 2 2 . . . . 2 . . . . 2 Power 1 | . . . . . . . . . . . . . . . . . . . . 1 Propulsion 3 | . . . 1 . . . 1 . . . . . . . . . . . . 1 Utility 7 | . . . 1 . . . 1 . 2 1 . . . . 2 . . . . . Weapon 1 | . . . . . . . . . . 1 . . . . . . . . . . Parts Attached 480 | 6 14 4 21 14 35 19 20 46 46 30 11 4 4 35 7 83 16 20 17 28 Power 27 | 1 1 . 2 1 6 . . 2 . 2 . 1 . . . 5 1 . 2 3 Engine 10 | 1 1 . 2 1 1 . . . . 1 . . . . . 3 . . . . Core 12 | . . . . . 4 . . 1 . 1 . 1 . . . 1 . . 1 3 Reactor 5 | . . . . . 1 . . 1 . . . . . . . 1 1 . 1 . Propulsion 97 | 2 5 . 5 5 8 8 4 13 4 5 2 1 . 3 . 19 3 4 . 6 Treads 57 | . 2 . 5 . 2 2 . 9 4 4 2 . . 3 . 12 3 4 . 5 Leg 23 | 2 3 . . . 4 5 4 2 . 1 . 1 . . . 1 . . . . Wheel 13 | . . . . 3 2 1 . 1 . . . . . . . 6 . . . . Hover 2 | . . . . . . . . 1 . . . . . . . . . . . 1 Flight 2 | . . . . 2 . . . . . . . . . . . . . . . . Utility 128 | 1 3 2 5 1 9 1 4 11 14 9 3 . 2 10 3 24 4 12 4 6 Device 56 | . . 1 1 . 4 1 3 5 7 3 3 . . 6 . 7 2 8 1 4 Storage 5 | 1 2 . 1 . . . . . . . . . . . . 1 . . . . Processor 9 | . 1 . 1 . . . . . . 4 . . . 1 2 . . . . . Hackware 5 | . . . . . . . . 4 . 1 . . . . . . . . . . Protection 53 | . . 1 2 1 5 . 1 2 7 1 . . 2 3 1 16 2 4 3 2 Artifact . | . . . . . . . . . . . . . . . . . . . . . Weapon 228 | 2 5 2 9 7 12 10 12 20 28 14 6 2 2 22 4 35 8 4 11 13 Energy Gun 23 | 1 . . . . . . . 4 5 2 . . . . . 9 1 . . 1 Energy Cannon 2 | . . . . . . . . . 2 . . . . . . . . . . . Ballistic Gun 102 | 1 4 2 6 5 7 9 5 8 9 4 . 1 1 13 2 9 2 4 4 6 Ballistic Cannon 6 | . . . 1 . . . . . . . . . . . . . . . 5 . Launcher 44 | . 1 . 2 2 3 1 3 3 6 4 3 . . 1 . 8 3 . . 4 Special Weapon 2 | . . . . . . . . . . . . . . . . 1 . . . 1 Impact Weapon 1 | . . . . . . . . . . . . . . . . 1 . . . . Slashing Weapon 38 | . . . . . 2 . 4 5 6 4 3 1 1 6 2 3 . . . 1 Piercing Weapon 10 | . . . . . . . . . . . . . . 2 . 4 2 . 2 . Special Melee Weapon . | . . . . . . . . . . . . . . . . . . . . . Unidentified Prototypes 13 | . . . . . 4 . . 2 . . . . . . . 1 3 1 1 1 Corrupted Parts 12 | . . . . . . . . 1 . 1 . . . . . 2 3 2 3 . System Corruption 90 | . . . . . . . . 3 . 7 . . . . . 10 28 15 27 . Parts Lost 119 | . 1 2 8 5 3 3 5 5 8 9 1 . . 5 . 27 1 3 6 27 Power 13 | . . . 2 . 1 . . 2 . 2 . . . . . 2 . . 1 3 Propulsion 36 | . 1 . 2 2 1 2 4 . 3 3 1 . . 2 . 9 . . . 6 Utility 38 | . . . 1 1 1 1 1 1 5 1 . . . 2 . 11 1 2 3 7 Weapon 32 | . . 2 3 2 . . . 2 . 3 . . . 1 . 5 . 1 2 11 Highest Loss Streak 15 | . 1 2 3 3 3 3 3 2 3 3 1 . . 3 . 11 1 3 5 15 Average Slot Usage (%) 91 | . 93 99 94 89 99 98 94 91 98 82 92 92 93 90 94 89 90 74 77 72 Engine 2 | . 14 14 10 11 5 . . . . 1 6 . . . . 1 . . . . Core 3 | . . . . . 5 11 9 3 . 3 . 5 6 6 5 3 2 . 1 5 Reactor 1 | . . . . . . . . 4 7 1 . . . . . . 2 5 3 3 Treads 15 | . . . 31 11 7 6 13 20 29 18 19 20 20 23 23 14 16 10 11 10 Leg 5 | . 27 28 1 . 11 23 10 8 . 2 6 6 6 1 . . . . . . Wheel 4 | . . . . 17 14 2 8 3 . . . . . . . 7 . . . . Device 10 | . . . . . 1 9 17 14 22 8 19 20 14 13 5 15 11 5 4 7 Storage 7 | . 14 14 11 11 11 11 9 9 7 6 6 6 6 6 5 5 5 5 5 5 Processor 11 | . 8 5 6 11 4 . . . . 20 20 20 20 19 23 18 14 11 11 10 Protection 9 | . . 8 10 3 15 12 9 9 14 4 . . 4 4 11 7 17 21 19 15 Energy Gun 1 | . 5 . . . . . . 1 5 2 . . . . . 2 11 4 . . Ballistic Gun 9 | . 21 27 21 21 11 22 12 12 5 3 6 6 . 9 16 5 . 5 7 6 Launcher 1 | . 1 . . . 8 . 1 1 . 2 . . . . . . 4 . . . Slashing Weapon 2 | . . . . . 1 . 3 2 2 3 5 6 13 3 . . . . . . Naked Turns . | . . . . . . . . . . . . . . . . . . . . . Heaviest Build 168 | 13 16 19 106 94 118 116 117 119 124 122 122 105 114 126 120 132 147 154 168 163 Greatest Support 183 | 20 20 20 60 60 42 40 40 80 80 80 78 78 78 108 103 103 160 160 160 183 Greatest Overweight (x) 28 | . 1 . 2 22 9 11 7 11 1 3 1 5 1 1 1 6 2 1 1 28 Average Overweight (x) 1 | . . . . 2 6 4 6 3 1 1 1 1 1 . 1 1 . . . . Largest Inventory Capacity 25 | 8 25 8 25 25 25 25 25 25 25 25 25 25 25 25 25 25 25 25 25 25 Average Capacity 24 | 7 8 8 23 25 25 25 25 25 25 25 25 25 25 25 25 25 25 25 25 25 Most Carried 25 | 4 9 8 25 25 25 25 25 25 25 25 24 25 25 25 25 25 25 25 25 22 Average Carried 22 | 1 7 7 18 24 23 25 24 24 24 22 23 24 24 24 24 24 24 24 23 19 Final Capacity 25 | 8 8 8 25 25 25 25 25 25 25 25 25 25 25 25 25 25 25 25 25 25 Final Carried 25 | 4 8 8 25 25 25 25 25 24 20 23 23 25 25 25 25 25 25 25 19 11 Class Distribution -------------------- 55% | Scavenger-Mutant 19% | Mutant 7% | Scavenger-Tank 7% | Gladiator 6% | Scavenger-Skirmisher Dominant Class ---------------- Mutant | -10/Materials Mutant | -10/Mines Scavenger-Mutant | -9/Materials Scavenger-Mutant | -9/Mines Scavenger-Mutant | -9/Exiles Scavenger-Mutant | -8/Mines Scavenger-Mutant | -8/Materials Scavenger-Mutant | -8/Storage Scavenger-Mutant | -7/Factory Scavenger-Mutant | -6/Factory Mutant | -6/Lower Caves Mutant | -6/Lower Caves Gladiator | -6/Zion Mutant | -5/Proximity Caves Scavenger-Skirmisher | -5/Factory Scavenger-Mutant | -5/Extension Scavenger-Mutant | -5/Cetus Scavenger-Mutant | -5/Archives Scavenger-Tank | -5/Hub_04(d) Scavenger-Tank | -4/Factory Resources | -11 -10 -10 -9 -9 -9 -8 -8 -8 -7 -6 -6 -6 -6 -5 -5 -5 -5 -5 -5 -4 ----------- Run | Scr Mat Min Mat Min Exi Min Mat Sto Fac Fac Low Low Zio Pro Fac Ext Cet Arc Hub Fac Matter Collected 11266 | 153 557 263 557 241 674 580 390 771 605 389 423 113 71 453 . 1607 467 770 851 1331 Remotely 465 | . . . 76 . 261 . 128 . . . . . . . . . . . . . Salvage Created 17006 | . 650 495 1064 553 559 877 776 1215 872 519 839 177 . 706 . 2370 1012 770 1024 2528 Parts 906 | . 33 26 68 32 68 49 42 79 51 29 17 20 . 34 . 81 44 62 56 115 Haulers Intercepted 6 | . 2 . 1 . . . . 1 . . . . . . . . . . 1 1 Recyclers Shooed 20 | . 2 1 3 3 . . 1 3 . . . . . 3 . 3 . . . 1 Parts Field Recycled . | . . . . . . . . . . . . . . . . . . . . . Retrieved Matter . | . . . . . . . . . . . . . . . . . . . . . Parts Self-Destructed 63 | . . . . . . . . . . . 17 10 . 36 . . . . . . Prevented 6 | . . . . . . . . . . . . . . 6 . . . . . . Kills | -11 -10 -10 -9 -9 -9 -8 -8 -8 -7 -6 -6 -6 -6 -5 -5 -5 -5 -5 -5 -4 ------- Run | Scr Mat Min Mat Min Exi Min Mat Sto Fac Fac Low Low Zio Pro Fac Ext Cet Arc Hub Fac Combat Hostiles Destroyed 269 | . 11 8 28 11 4 16 23 21 19 12 12 5 . 11 . 21 12 4 14 37 Melee 40 | . . . . . . . 5 10 9 6 2 2 . 2 . 2 . . 2 . Guns 141 | . 11 8 25 6 4 13 7 9 4 1 8 3 . 6 . 9 . 4 5 18 Cannons 17 | . . . . . . . . . . . . . . . . . . . 7 10 AOE 55 | . . . 3 5 . 3 11 2 5 5 2 . . 2 . 3 5 . . 9 Classes Destroyed 20 | . 6 . 2 1 3 2 . 1 2 . . 1 . 1 . . . . 1 . Worker 7 | . 1 . 1 . . . 1 2 . . . . . . . . . . 1 1 Builder 20 | . . . . 2 . 2 . 1 1 . . . . . . 7 . . 1 6 Hauler 6 | . 2 . 1 . . . . 1 . . . . . . . . . . 1 1 Recycler 21 | . 1 2 . 4 . 1 1 3 1 . . . . 1 . 5 . . . 2 Operator 12 | . . . . . . . . 1 . 1 . . . . . . . 9 . 1 Turret 1 | . . . . . 1 . . . . . . . . . . . . . . . Watcher 9 | . 2 . . . . . . 1 1 . . . . . . 1 . . 4 . Swarmer 43 | . 2 . 8 8 . 3 6 6 . 3 . . . 5 . . . . . 2 Grunt 130 | . 9 8 12 3 . 8 15 7 10 5 11 . . . . 15 8 . 5 14 Brawler 5 | . . . . . . 1 . . . . 1 . . 2 . . . . 1 . Duelist 6 | . . . 1 . . 1 1 . . . . . . 1 . 1 . . 1 . Sentry 34 | . . . 7 . . . 1 8 2 1 . . . 1 . 3 . 4 1 6 Specialist 5 | . . . . . . . . . 1 . . . . . . . . . 2 2 Hunter 12 | . . . . . . 3 . . 3 . . . . . . . . . 2 4 Programmer 18 | . . . . . . . . . 3 3 . 3 . . . . . . 1 8 Heavy 2 | . . . . . . . . . . . . . . . . . . . 1 1 Behemoth 4 | . . . . . . . . . . . . . . 2 . 2 . . . . Cetus Guard 4 | . . . . . . . . . . . . . . . . . 4 . . . Zionite 3 | . . . . . 3 . . . . . . . . . . . . . . . Master Thief 2 | . . . . . . . . . . . . 2 . . . . . . . . Assembled 3 | . . . . . 3 . . . . . . . . . . . . . . . Savage 1 | . . . . . . . . . . . . . . . . . 1 . . . Butcher 1 | . . . . . . . . . . . . . . . . 1 . . . . Best Kill Streak 8 | . 5 3 5 4 2 4 7 4 4 3 8 2 . 5 . 6 4 5 7 6 Combat Bots Only 8 | . 4 2 5 4 2 3 7 4 4 3 8 2 . 5 . 5 4 1 4 4 Max Kills in Single Turn 3 | . 2 1 3 3 1 3 3 2 2 1 1 1 . 2 . 3 2 1 1 3 Gunslinging 1 | . 1 . 1 . . . . . . . . . . . . . . . . . Exploded 3 | . . . 2 3 . 3 3 2 2 1 1 . . 2 . 1 2 . . 3 Melee 1 | . . . . . . . 1 1 1 1 1 1 . 1 . 1 . . 1 . Uniques/NPCs Destroyed 5 | . . . . . 4 . . . . . . . . . . . 1 . . . 8R-AWN (-9/Exiles) EX-BIN (-9/Exiles) EX-DEC (-9/Exiles) EX-HEX (-9/Exiles) A7 (-5/Cetus) Combat | -11 -10 -10 -9 -9 -9 -8 -8 -8 -7 -6 -6 -6 -6 -5 -5 -5 -5 -5 -5 -4 -------- Run | Scr Mat Min Mat Min Exi Min Mat Sto Fac Fac Low Low Zio Pro Fac Ext Cet Arc Hub Fac Damage Taken 26068 | . 390 510 1205 527 570 948 964 1260 2095 1000 479 40 . 539 . 4710 604 563 2909 6755 Core 2919 | . 79 145 48 78 86 86 147 82 179 116 37 . . 66 . 452 56 30 75 1157 Absorbed by Shields 423 | . . . . . 90 . . . . . . . . . . . 333 . . . Core Remaining (%) 54 | 100 . 10 . . . 25 . 58 74 . . . . 74 . . . . 38 . Volleys Fired 896 | . 56 38 106 51 66 56 42 46 46 9 6 . . 22 3 80 32 83 52 102 Largest 3 | . 2 2 2 2 1 2 2 2 2 3 1 . . 1 1 3 3 1 3 3 Hottest 225 | . 70 46 50 40 30 53 51 100 103 136 36 . . 36 33 225 208 30 183 157 Shots Fired 1618 | . 111 76 204 97 119 78 58 98 58 21 52 13 . 40 3 166 32 80 119 193 Gun 1382 | . 110 76 196 95 119 77 48 96 42 13 46 13 . 38 3 147 10 80 65 108 Cannon 135 | . . . 5 . . . . . 4 . . . . . . . . . 54 72 Launcher 100 | . 1 . 3 2 . 1 10 2 12 8 6 . . 2 . 19 22 . . 12 Special 1 | . . . . . . . . . . . . . . . . . . . . 1 Kinetic 1441 | . 97 76 201 95 119 77 48 94 28 10 46 13 . 38 3 118 7 79 119 173 Thermal 77 | . 13 . . . . . . 2 18 3 . . . . . 29 3 1 . 8 Explosive 54 | . 1 . 3 2 . 1 10 2 7 8 6 . . 2 . . . . . 12 Electromagnetic 46 | . . . . . . . . . 5 . . . . . . 19 22 . . . Robot Hit Streak 24 | . 24 12 12 15 17 13 9 14 15 3 11 9 . 8 . 18 3 11 7 12 Robot Miss Streak 5 | . 5 2 5 4 3 5 3 4 5 2 2 1 . 3 . 4 2 3 4 3 Penetration Max 2 | . . . . . 1 2 1 . . . . . . . . 1 . 1 1 1 Secondary Targets 9 | . 1 . 4 . . . . 1 . . . . . . . 2 . . 1 . Max Gunslinging Chain 1 | . 1 . 1 . . . . 1 . . . . . . . 1 . . 1 . Autonomous 159 | . . . . . 54 . . 15 . 9 47 13 . 21 . . . . . . Shots Hit Robots 1191 | . 81 54 131 60 88 53 43 100 65 36 44 16 . 38 . 114 16 56 72 124 Core Hits 674 | . 30 21 55 31 26 32 46 42 57 19 29 6 . 22 . 64 28 28 40 98 Critical Kills 59 | . . . 1 . 4 6 . . . . . . . 3 . 4 . 11 8 22 Critical Parts Destroyed 67 | . 1 . . . 11 6 . . . . 1 . . 1 . 7 1 6 10 23 Critical Strikes 150 | . 4 . 1 . 16 12 . 4 . 1 1 . . 4 . 14 2 25 19 47 Burn 5 | . 3 . . . . . . . . . . . . . . 2 . . . . Destroy 138 | . 1 . 1 . 16 12 . . . . 1 . . 4 . 11 2 25 18 47 Sever 5 | . . . . . . . . 4 . 1 . . . . . . . . . . Puncture 2 | . . . . . . . . . . . . . . . . 1 . . 1 . Melee Attacks 336 | . . . . . . . 10 34 36 26 12 15 1 14 3 152 15 . 18 . Impact 81 | . . . . . . . . . . . . . . . . 81 . . . . Slashing 157 | . . . . . . . 10 34 36 26 12 15 1 7 3 13 . . . . Piercing 98 | . . . . . . . . . . . . . . 7 . 58 15 . 18 . Sneak Attacks 21 | . . . . . . . . 7 2 . . . . 1 . 4 7 . . . Combat Hostiles . | . . . . . . . . . . . . . . . . . . . . . Follow-up Attacks 2 | . . . . . . . . . . . . . . 2 . . . . . . Damage Inflicted 37915 | . 1094 774 1680 851 2070 1201 2157 3526 2889 1840 2151 532 . 1129 . 4538 2713 1042 1697 6031 Guns 18537 | . 1091 773 1435 503 2070 978 552 1397 770 198 957 283 . 666 . 2726 112 1042 922 2062 Cannons 1200 | . . . . . . . . . . . . . . . . . . . 512 688 Explosions 10306 | . . . 203 348 . 219 1246 228 761 401 398 . . 185 . 1095 1970 . . 3252 Melee 7763 | . . . . . . . 356 1882 1350 1241 796 249 . 278 . 717 631 . 263 . Ramming 91 | . 3 1 42 . . 4 3 19 8 . . . . . . . . . . 11 Kinetic 18599 | . 980 773 1435 503 2070 978 552 1355 558 198 957 283 . 666 . 2162 42 1016 1434 2637 Thermal 1224 | . 111 . . . . . . 42 212 . . . . . . 564 138 26 . 131 Explosive 6748 | . . . 203 348 . 219 1062 228 637 401 398 . . 185 . . . . . 3067 Electromagnetic 3490 | . . . . . . . 184 . 124 . . . . . . 1095 1902 . . 185 Impact 186 | . . . . . . . . . . . . . . . . 186 . . . . Slashing 6122 | . . . . . . . 356 1882 1350 1241 796 249 . 101 . 147 . . . . Piercing 1455 | . . . . . . . . . . . . . . 177 . 384 631 . 263 . Highest Corruption 47 | . . . . . . . 1 7 3 12 12 12 12 . . 12 40 47 43 13 Average Corruption 12 | . . . . . . . 1 2 1 9 12 12 12 . . 11 26 30 16 4 Corruption Purged 40 | . . . . . . . . . . . . . . . . . . 40 . . Effects 496 | . . . . . . . . 18 5 30 44 48 9 . . 169 39 89 34 11 Message Errors 119 | . . . . . . . . 4 3 7 9 11 3 . . 46 4 23 5 4 Matter Fused 111 | . . . . . . . . 4 . 8 12 11 2 . . 31 12 21 9 1 Heat Flow Errors 61 | . . . . . . . . 2 1 2 6 6 3 . . 24 3 12 2 . Energy Discharges 71 | . . . . . . . . 5 . 6 5 5 1 . . 31 6 7 4 1 Parts Rejected 4 | . . . . . . . . . . 1 . . . . . . 1 1 . 1 Data Loss (minor) 60 | . . . . . . . . 3 1 5 8 6 . . . 21 1 10 3 2 Data Loss (major) 29 | . . . . . . . . . . . 2 5 . . . 10 5 4 2 1 Misfires 11 | . . . . . . . . . . 1 . . . . . 3 2 4 . 1 Alerts 10 | . . . . . . . . . . . 1 4 . . . 3 1 . 1 . Misdirections 2 | . . . . . . . . . . . 1 . . . . . . . 1 . Weapon Failures 18 | . . . . . . . . . . . . . . . . . 4 7 7 . Overload Shots . | . . . . . . . . . . . . . . . . . . . . . Overflow Damage 1334 | . . . . . . 11 13 381 5 40 304 82 . . . 261 96 . . 141 Projectiles . | . . . . . . . . . . . . . . . . . . . . . Explosions 185 | . . . . . . 11 13 . . . . . . . . 20 . . . 141 Melee 1149 | . . . . . . . . 381 5 40 304 82 . . . 241 96 . . . Knockbacks 17 | . . . . . . . . . . . . . . . . . . . 3 14 Impact . | . . . . . . . . . . . . . . . . . . . . . Kinetic 14 | . . . . . . . . . . . . . . . . . . . 2 12 Secondary 3 | . . . . . . . . . . . . . . . . . . . 1 2 Self-Inflicted Damage 526 | . . . 22 . . . 71 . 39 . . . . 4 . 36 71 . 118 165 Shots 19 | . . . 1 . . . 3 . 4 . . . . 1 . 3 3 . 2 2 Rammed 16 | . . . 6 . . . . 5 2 . . . . . . . . . . 3 Targets Rammed 20 | . 1 1 6 . . 1 1 5 2 . . . . . . . . . . 3 Kicked 3 | . 1 1 . . . 1 . . . . . . . . . . . . . . Crushed 1 | . . . . . . . 1 . . . . . . . . . . . . . Highest Temperature 468 | . 100 67 48 14 136 210 16 167 162 242 218 264 128 16 . 468 247 290 368 93 Average Temperature 77 | . 26 25 10 4 52 77 9 86 122 66 76 115 63 8 . 119 86 106 137 36 Received Heat Transfer 5764 | . 213 342 399 57 . 297 405 387 303 336 255 . . 48 . 1366 139 108 381 728 Effects 6 | . . . . . . . . . . . . . . . . 3 1 2 . . Energy Bleed 1 | . . . . . . . . . . . . . . . . . . 1 . . Interference 4 | . . . . . . . . . . . . . . . . 2 1 1 . . Damage (minor) 1 | . . . . . . . . . . . . . . . . 1 . . . . Siege Activations . | . . . . . . . . . . . . . . . . . . . . . Robots Corrupted 15 | . . . . . . . . . 1 . . . . . . 6 8 . . . Combat Hostiles 14 | . . . . . . . . . 1 . . . . . . 6 7 . . . Parts Fried 25 | . . . . . . . . . 1 . . . . . . 14 9 . . 1 Impact Corruptions 5 | . . . . . . . . . . . . . . . . 5 . . . . Robots Melted . | . . . . . . . . . . . . . . . . . . . . . Combat Hostiles . | . . . . . . . . . . . . . . . . . . . . . Parts Melted 7 | . 2 . . . . . . . . . . . . . . 3 1 . . 1 Heat Transferred 2639 | . 555 . . . . . . 74 298 . . . . . . 1279 174 37 . 222 Parts Sabotaged . | . . . . . . . . . . . . . . . . . . . . . Parts Stolen 1 | . . . . . . . . . . . . 1 . . . . . . . . Parts Stripped . | . . . . . . . . . . . . . . . . . . . . . Power Chain Reactions 1 | . . . . . . . . . . . . . . . . . 1 . . . Missiles Intercepted . | . . . . . . . . . . . . . . . . . . . . . Alert | -11 -10 -10 -9 -9 -9 -8 -8 -8 -7 -6 -6 -6 -6 -5 -5 -5 -5 -5 -5 -4 ------- Run | Scr Mat Min Mat Min Exi Min Mat Sto Fac Fac Low Low Zio Pro Fac Ext Cet Arc Hub Fac Peak Influence 1232 | . 232 221 271 239 . 277 341 283 281 181 . . . . 113 834 1058 543 830 1232 Initial 466 | . . 81 . 39 . . 22 143 31 122 . . . . 59 50 466 419 17 406 Average 226 | . 109 106 131 51 . 101 162 134 59 87 . . . . 88 320 801 287 219 592 Maximum Alert Level 4 | . 1 1 1 1 . 1 1 1 1 . . . . . . 3 3 2 3 4 Low Security (%) 59 | 100 83 84 71 99 . 97 62 86 95 100 . . . . 100 31 . 31 38 . Level 1 13 | . 16 15 28 . . 2 37 13 4 . . . . . . 8 . 45 58 10 Level 2 23 | . . . . . . . . . . . . . . . . 59 25 22 . 66 Level 3 3 | . . . . . . . . . . . . . . . . 1 74 . 3 14 Level 4 . | . . . . . . . . . . . . . . . . . . . . 8 Level 5 . | . . . . . . . . . . . . . . . . . . . . . High Security . | . . . . . . . . . . . . . . . . . . . . . Max Security . | . . . . . . . . . . . . . . . . . . . . . Squads Dispatched 65 | . 3 1 5 . . 1 5 3 8 5 . . . . 4 4 . . 9 17 Investigation 12 | . 2 1 2 . . . 1 . 1 2 . . . . . . . . 1 2 Extermination 9 | . . . . . . . . . 3 3 . . . . . . . . . 3 Reinforcement 26 | . 1 . 3 . . 1 3 2 4 . . . . . . 2 . . 3 7 Assault 5 | . . . . . . . . . . . . . . . . 2 . . 2 1 Garrison 13 | . . . . . . . 1 1 . . . . . . 4 . . . 3 4 Intercept . | . . . . . . . . . . . . . . . . . . . . . Construction Impeded 7 | . . . . . . 1 . . 1 . . . . . . 2 . . . 3 Haulers Reinforced 2 | . . . . . . . . . 1 . . . . . . . . . . 1 Active Scanning Responses . | . . . . . . . . . . . . . . . . . . . . . Cargo Convoy Interrupts 1 | . . . . . . . . . 1 . . . . . . . . . . . Stealth | -11 -10 -10 -9 -9 -9 -8 -8 -8 -7 -6 -6 -6 -6 -5 -5 -5 -5 -5 -5 -4 --------- Run | Scr Mat Min Mat Min Exi Min Mat Sto Fac Fac Low Low Zio Pro Fac Ext Cet Arc Hub Fac Distress Signals 12 | . . . . . . . 3 2 . . . . . . . . 2 . 2 3 Communications Jammed 2 | . . . . . . . . 2 . . . . . . . . . . . . Distress Signals . | . . . . . . . . . . . . . . . . . . . . . Times Spotted 491 | . 23 7 43 11 47 20 31 33 35 17 11 5 . 11 10 60 31 22 24 50 Peak Tracking Total 11 | . 4 2 5 4 11 4 6 7 5 3 4 2 . 5 6 8 5 1 5 8 Tactical Retreats 49 | . 2 . 1 . 23 4 1 1 . 3 . . . . 1 4 1 . 1 7 Traps | -11 -10 -10 -9 -9 -9 -8 -8 -8 -7 -6 -6 -6 -6 -5 -5 -5 -5 -5 -5 -4 ------- Run | Scr Mat Min Mat Min Exi Min Mat Sto Fac Fac Low Low Zio Pro Fac Ext Cet Arc Hub Fac Traps Triggered 14 | . . . . . 1 . . 4 . . . . . . . 8 . . . 1 Indirectly 4 | . . . . . . . . . . . . . . . . 4 . . . . Trap Hack Attempts . | . . . . . . . . . . . . . . . . . . . . . Triggered . | . . . . . . . . . . . . . . . . . . . . . Disarmed . | . . . . . . . . . . . . . . . . . . . . . Reprogrammed . | . . . . . . . . . . . . . . . . . . . . . Reused . | . . . . . . . . . . . . . . . . . . . . . Traps Extracted . | . . . . . . . . . . . . . . . . . . . . . Installed 1 | . . . . . 1 . . . . . . . . . . . . . . . Triggered 3 | . . . . . . . . . 3 . . . . . . . . . . . Exploded 3 | . . . . . 3 . . . . . . . . . . . . . . . Machines | -11 -10 -10 -9 -9 -9 -8 -8 -8 -7 -6 -6 -6 -6 -5 -5 -5 -5 -5 -5 -4 ---------- Run | Scr Mat Min Mat Min Exi Min Mat Sto Fac Fac Low Low Zio Pro Fac Ext Cet Arc Hub Fac Machines Disabled 65 | . 1 . . . 14 1 2 2 1 1 . . . 3 . 8 8 4 16 4 Max in Single Turn 12 | . 1 . . . 1 1 1 1 1 1 . . . 1 . 1 4 1 12 3 Garrison Access 2 | . . . . . . . . 1 1 . . . . . . . . . . . Network Hub 2 | . . . . . . . . . . . . . . . . . . . 2 . Machines Sabotaged . | . . . . . . . . . . . . . . . . . . . . . Garrisons Compromised 1 | . . . . . . . . . 1 . . . . . . . . . . . Overloaded Fab Kills . | . . . . . . . . . . . . . . . . . . . . . Hacking | -11 -10 -10 -9 -9 -9 -8 -8 -8 -7 -6 -6 -6 -6 -5 -5 -5 -5 -5 -5 -4 --------- Run | Scr Mat Min Mat Min Exi Min Mat Sto Fac Fac Low Low Zio Pro Fac Ext Cet Arc Hub Fac Machines Accessed 59 | . 6 1 9 . 2 . 7 14 8 9 . . . 1 . . . . . 2 Terminals 37 | . 5 . 6 . . . 4 11 4 7 . . . . . . . . . . Fabricators 1 | . . . . . . . . . . . . . . 1 . . . . . . Repair Stations 4 | . . . 1 . . . 1 . 1 1 . . . . . . . . . . Recycling Units 6 | . 1 . 1 . . . . 2 2 . . . . . . . . . . . Scanalyzers 4 | . . . 1 . . . 2 . . . . . . . . . . . . 1 Garrison Access 4 | . . . . . . . . 1 1 1 . . . . . . . . . 1 Total Hacks 177 | . 22 1 37 . 2 . 21 39 15 26 . . . 3 . . . . . 11 Successful 96 | . 8 1 27 . 2 . 13 22 8 11 . . . 2 . . . . . 2 Failed 81 | . 14 . 10 . . . 8 17 7 15 . . . 1 . . . . . 9 Catastrophic 11 | . 1 . 1 . . . . 1 2 4 . . . . . . . . . 2 Database Lockouts . | . . . . . . . . . . . . . . . . . . . . . Manual 117 | . 12 . 22 . 1 . 6 20 6 15 . . . . 2 16 10 . . 7 Terminals 112 | . 15 . 27 . . . 11 30 7 22 . . . . . . . . . . Fabricators 3 | . . . . . . . . . . . . . . 3 . . . . . . Repair Stations 9 | . . . 2 . . . 2 . 3 2 . . . . . . . . . . Recycling Units 19 | . 7 . 1 . . . . 7 4 . . . . . . . . . . . Scanalyzers 22 | . . . 7 . . . 8 . . . . . . . . . . . . 7 Garrison Access 9 | . . . . . . . . 2 1 2 . . . . . . . . . 4 Terminal Hacks 45 | . 4 1 13 . 2 . 5 11 3 6 . . . . . . . . . . Record 2 | . . . . . 1 . . . . 1 . . . . . . . . . . Robot Analysis 3 | . . . 1 . . . 1 1 . . . . . . . . . . . . Prototype ID Bank 3 | . . . 2 . . . . . . 1 . . . . . . . . . . Open Door 4 | . . 1 . . . . . 3 . . . . . . . . . . . . Open DSF 1 | . . . . . . . . . 1 . . . . . . . . . . . Level Access Points 1 | . . . . . . . . . 1 . . . . . . . . . . . Branch Access Points 2 | . . . . . . . 1 . . 1 . . . . . . . . . . Emergency Access Points 3 | . 1 . . . . . . . 1 1 . . . . . . . . . . Terminal Index 4 | . 1 . 1 . . . 1 1 . . . . . . . . . . . . Repair Station Index 1 | . . . 1 . . . . . . . . . . . . . . . . . Unreport Threat 6 | . . . 2 . . . . 3 . 1 . . . . . . . . . . Locate Traps 4 | . 1 . 1 . . . 1 1 . . . . . . . . . . . . Recall Reinforcements 1 | . . . . . . . 1 . . . . . . . . . . . . . Hauler Manifests 2 | . . . 1 . . . . 1 . . . . . . . . . . . . Registered Components 1 | . . . 1 . . . . . . . . . . . . . . . . . Zone Layout 6 | . 1 . 3 . . . . 1 . 1 . . . . . . . . . . EX-Prototype ID Bank 1 | . . . . . 1 . . . . . . . . . . . . . . . Fabricator Hacks 2 | . . . . . . . . . . . . . . 2 . . . . . . Load Schematic 1 | . . . . . . . . . . . . . . 1 . . . . . . Build 1 | . . . . . . . . . . . . . . 1 . . . . . . Repair Station Hacks 8 | . . . 2 . . . 2 . 2 2 . . . . . . . . . . Scan Component 4 | . . . 1 . . . 1 . 1 1 . . . . . . . . . . Repair 4 | . . . 1 . . . 1 . 1 1 . . . . . . . . . . Recycling Unit Hacks 5 | . 2 . . . . . . 3 . . . . . . . . . . . . Retrieve Matter 2 | . 1 . . . . . . 1 . . . . . . . . . . . . Retrieve Components 3 | . 1 . . . . . . 2 . . . . . . . . . . . . Scanalyzer 14 | . . . 6 . . . 6 . . . . . . . . . . . . 2 Insert Component 7 | . . . 3 . . . 3 . . . . . . . . . . . . 1 Analyze 7 | . . . 3 . . . 3 . . . . . . . . . . . . 1 Garrison Access Hacks 2 | . . . . . . . . 1 1 . . . . . . . . . . . Seal Access 2 | . . . . . . . . 1 1 . . . . . . . . . . . Unauthorized Hacks 20 | . 2 . 6 . . . . 7 2 3 . . . . . . . . . . Terminals 14 | . 1 . 4 . . . . 5 1 3 . . . . . . . . . . Track 1 | . . . . . . . . 1 . . . . . . . . . . . . Botnet 9 | . . . 3 . . . . 3 1 2 . . . . . . . . . . Operators 4 | . 1 . 1 . . . . 1 . 1 . . . . . . . . . . Fabricators . | . . . . . . . . . . . . . . . . . . . . . Repair Stations . | . . . . . . . . . . . . . . . . . . . . . Recycling Units 5 | . 1 . 1 . . . . 2 1 . . . . . . . . . . . Reject 2 | . . . . . . . . 1 1 . . . . . . . . . . . Mask 1 | . . . . . . . . 1 . . . . . . . . . . . . Tunnel 2 | . 1 . 1 . . . . . . . . . . . . . . . . . Scanalyzers 1 | . . . 1 . . . . . . . . . . . . . . . . . Extract 1 | . . . 1 . . . . . . . . . . . . . . . . . Garrison Access . | . . . . . . . . . . . . . . . . . . . . . Data Cores Recovered . | . . . . . . . . . . . . . . . . . . . . . Used . | . . . . . . . . . . . . . . . . . . . . . Hacking Detections 48 | . 6 . 8 . . . 7 10 6 8 . . . 1 . . . . . 2 Full Trace Events 9 | . 1 . . . . . 2 . 1 2 . . . 1 . . . . . 2 Feedback Events 1 | . . . . . . . . . . . . . . . . . . . . 1 Corruption 1 | . . . . . . . . . . . . . . . . . . . . 1 Feedback Blocked . | . . . . . . . . . . . . . . . . . . . . . Robot Schematics Acquired 6 | . . . . . . . . . . . . . 3 . . . . . . 3 Robots Built . | . . . . . . . . . . . . . . . . . . . . . Authchips . | . . . . . . . . . . . . . . . . . . . . . Time . | . . . . . . . . . . . . . . . . . . . . . Total Robot Build Rating . | . . . . . . . . . . . . . . . . . . . . . Part Schematics Acquired 32 | . . . 4 . . . . . . . . . 15 . . . 12 . . 1 Parts Built 1 | . . . . . . . . . . . . . . 1 . . . . . . Authchips . | . . . . . . . . . . . . . . . . . . . . . Time 36 | . . . . . . . . . . . . . . 36 . . . . . . Total Part Build Rating 3 | . . . . . . . . . . . . . . 3 . . . . . . Parts Repaired 4 | . . . 1 . . . 1 . 1 1 . . . . . . . . . . Time 127 | . . . 38 . . . 32 . 19 38 . . . . . . . . . . Parts Recycled . | . . . . . . . . . . . . . . . . . . . . . Recycled Matter . | . . . . . . . . . . . . . . . . . . . . . Retrieved Matter 60 | . 60 . . . . . . . . . . . . . . . . . . . Retrieved Components 27 | . 9 . . . . . . 18 . . . . . . . . . . . . Parts Scanalyzed 5 | . . . 3 . . . 1 . . . . . . . . . . . . 1 Part Schematics Acquired 4 | . . . 3 . . . . . . . . . . . . . . . . 1 Parts Damaged . | . . . . . . . . . . . . . . . . . . . . . Bothacking | -11 -10 -10 -9 -9 -9 -8 -8 -8 -7 -6 -6 -6 -6 -5 -5 -5 -5 -5 -5 -4 ------------ Run | Scr Mat Min Mat Min Exi Min Mat Sto Fac Fac Low Low Zio Pro Fac Ext Cet Arc Hub Fac Used RIF Installer . | . . . . . . . . . . . . . . . . . . . . . Robots Hacked . | . . . . . . . . . . . . . . . . . . . . . Non-combat . | . . . . . . . . . . . . . . . . . . . . . Combat . | . . . . . . . . . . . . . . . . . . . . . Robot Hacks Applied . | . . . . . . . . . . . . . . . . . . . . . Relay Couplers Released . | . . . . . . . . . . . . . . . . . . . . . Robots Rewired 23 | . . . . . . . . . . . . . . 6 . 17 . . . . Allies Hacked . | . . . . . . . . . . . . . . . . . . . . . Hacks Repelled . | . . . . . . . . . . . . . . . . . . . . . Allies | -11 -10 -10 -9 -9 -9 -8 -8 -8 -7 -6 -6 -6 -6 -5 -5 -5 -5 -5 -5 -4 -------- Run | Scr Mat Min Mat Min Exi Min Mat Sto Fac Fac Low Low Zio Pro Fac Ext Cet Arc Hub Fac Total Allies 38 | . . . . . . . . . . . . . 4 6 3 24 1 . . . Largest Group 12 | . . . . . . . . . . . . . 4 6 6 12 4 . . . Highest-Rated Group 399 | . . . . . . . . . . . . . 152 198 210 399 244 . . . Highest-Rated Ally 159 | . . . . . . . . . . . . . 40 41 70 159 159 . . . Zionite Dispatches 3 | . . . . . . . . . . . . . . . 1 1 1 . . . Light 1 | . . . . . . . . . . . . . . . 1 . . . . . Kinetic Resupply 1 | . . . . . . . . . . . . . . . . . 1 . . . Heavy Resupply 1 | . . . . . . . . . . . . . . . . 1 . . . . Total Orders 9 | . . . . . . . . . . . . . . . . 8 1 . . . STAY 5 | . . . . . . . . . . . . . . . . 5 . . . . FOLLOW 2 | . . . . . . . . . . . . . . . . 2 . . . . DROP 2 | . . . . . . . . . . . . . . . . 1 1 . . . Ally Attacks 309 | . . . . . . . . . . . . . . 35 28 180 66 . . . Total Damage 8379 | . . . . . . . . . . . . . . 606 786 4770 2217 . . . Kills 63 | . . . . . . . . . . . . . . 5 8 32 18 . . . Allies Corrupted 3 | . . . . . . . . . . . . . . . . 2 1 . . . Allies Melted 1 | . . . . . . . . . . . . . . . . 1 . . . . Turrets Deployed 1 | . . . . . . . . . . . . . . . . 1 . . . . Intel | -11 -10 -10 -9 -9 -9 -8 -8 -8 -7 -6 -6 -6 -6 -5 -5 -5 -5 -5 -5 -4 ------- Run | Scr Mat Min Mat Min Exi Min Mat Sto Fac Fac Low Low Zio Pro Fac Ext Cet Arc Hub Fac Robot Analysis Total 3 | . . . 1 . . . 1 1 . . . . . . . . . . . . Derelict Logs Recovered 7 | . . 1 . 1 . . . . . . 2 1 1 1 . . . . . . Drone Launches . | . . . . . . . . . . . . . . . . . . . . . Drone Recoveries . | . . . . . . . . . . . . . . . . . . . . . Zionite Intel Received 5 | . . . . . . . . . . . . . . . . 3 1 . . 1 Guard Positions 1 | . . . . . . . . . . . . . . . . 1 . . . . Prototype Stockpiles 1 | . . . . . . . . . . . . . . . . 1 . . . . Component Schematics 1 | . . . . . . . . . . . . . . . . . 1 . . . Unaware Schematics 1 | . . . . . . . . . . . . . . . . . . . . 1 Unaware Analyses 1 | . . . . . . . . . . . . . . . . 1 . . . . Exploration | -11 -10 -10 -9 -9 -9 -8 -8 -8 -7 -6 -6 -6 -6 -5 -5 -5 -5 -5 -5 -4 ------------- Run | Scr Mat Min Mat Min Exi Min Mat Sto Fac Fac Low Low Zio Pro Fac Ext Cet Arc Hub Fac Turns Passed 36119 | 86 981 848 2249 1223 3656 1330 931 1764 2307 1520 1161 1281 2861 1515 478 7443 695 1759 611 1420 Spaces Moved 15340 | 63 629 600 810 649 1757 396 331 531 823 524 446 519 1187 531 186 3758 300 584 209 507 Core 8 | 3 . . . . . . . . . . . . . . . . . . . 5 Treads 8566 | . . . 755 140 51 5 1 340 823 524 446 518 1187 531 186 1465 300 584 209 501 Legs 1686 | 60 629 600 55 . . 265 13 63 . . . 1 . . . . . . . . Wheels 5078 | . . . . 508 1706 126 317 128 . . . . . . . 2293 . . . . Hover 1 | . . . . . . . . . . . . . . . . . . . . 1 Flight 1 | . . . . 1 . . . . . . . . . . . . . . . . Fastest Speed 50 | 50 120 120 120 108 123 190 190 215 240 240 240 240 240 160 242 115 160 160 160 160 Average Speed 198 | 116 120 120 229 164 189 292 215 266 241 257 240 240 240 219 242 169 180 163 177 215 Slowest Speed 1820 | 120 190 120 320 1820 560 890 470 480 242 400 240 470 240 243 242 480 320 240 240 1450 Overloaded Moves . | . . . . . . . . . . . . . . . . . . . . . Propulsion Burnouts . | . . . . . . . . . . . . . . . . . . . . . Robots Hopped . | . . . . . . . . . . . . . . . . . . . . . Cave-ins Triggered . | . . . . . . . . . . . . . . . . . . . . . Exploration Rate (%) 59 | 4 90 88 60 99 84 95 31 83 25 11 59 70 89 45 7 87 74 98 36 11 Regions Visited 20 Branch Regions 13 Pre-discovered Areas 5 | . 1 . 1 1 1 . . . . . . . . 1 . . . . . . Known Exits Taken 10 | . . . 1 . 1 . 1 . 1 1 . . . . 1 1 1 1 1 . Unknown Exits Taken 10 | 1 1 1 . 1 . 1 . 1 . . 1 1 1 1 . . . . . . Scrap Searched 12 | . . 1 . 1 . 3 . . . . 1 2 4 . . . . . . . Spaces Dug 263 | . 7 . 10 22 . 9 55 12 47 20 17 10 . 25 3 24 . . 2 . Terrain Destroyed 1015 | . 7 . 29 22 39 16 88 33 97 48 83 17 . 28 3 37 . 7 294 167 Melee 46 | . . . . . . . . 2 7 1 4 10 . . 3 17 . . 2 . Projectile 175 | . . . 4 . 35 7 . 14 2 2 31 7 . 7 . 20 . 4 15 27 AOE 787 | . 7 . 25 22 . 9 88 17 88 45 48 . . 21 . . . . 277 140 Terrain Rammed . | . . . . . . . . . . . . . . . . . . . . . Walls Destroyed . | . . . . . . . . . . . . . . . . . . . . . Machines Disabled . | . . . . . . . . . . . . . . . . . . . . . Actions | -11 -10 -10 -9 -9 -9 -8 -8 -8 -7 -6 -6 -6 -6 -5 -5 -5 -5 -5 -5 -4 --------- Run | Scr Mat Min Mat Min Exi Min Mat Sto Fac Fac Low Low Zio Pro Fac Ext Cet Arc Hub Fac Total 19084 | 72 742 653 1014 730 2025 482 473 754 1050 657 523 553 1202 843 207 4425 400 1301 320 658 Wait 1390 | . 26 5 34 1 102 4 57 56 79 54 49 . . 167 6 109 13 602 20 6 Move 15321 | 62 628 599 809 648 1756 395 330 530 823 523 445 518 1186 530 185 3757 299 583 208 507 Hop . | . . . . . . . . . . . . . . . . . . . . . Pick Up 186 | 4 9 3 30 7 27 2 6 13 6 9 . 7 5 13 2 22 9 4 . 8 Fast Attach 128 | 6 3 1 5 6 6 4 6 10 3 12 . 3 . 9 1 22 5 12 4 10 Attach 120 | . 1 3 8 3 14 . 3 9 13 10 1 1 2 6 2 19 1 4 7 13 Detach 31 | . 1 . 1 . 5 . . 1 5 6 . 1 . 1 . 7 . 1 1 1 Swap 232 | . 10 . 8 5 15 15 11 27 30 8 10 . 2 20 4 42 10 4 6 5 Drop 184 | . 7 3 7 9 33 5 7 23 8 . . 8 6 18 1 18 16 8 4 3 Fire 896 | . 56 38 106 51 66 56 42 46 46 9 6 . . 22 3 80 32 83 52 102 Melee 333 | . . . . . . . 10 34 36 26 12 15 1 11 3 152 15 . 18 . Ram . | . . . . . . . . . . . . . . . . . . . . . Kick 3 | . 1 1 . . . 1 . . . . . . . . . . . . . . Crush 16 | . . . 6 . . . 1 5 1 . . . . . . . . . . 3 Escape Stasis 4 | . . . . . . . . . . . . . . . . 4 . . . . Rewire 239 | . . . . . . . . . . . . . . 46 . 193 . . . . Trap 1 | . . . . . 1 . . . . . . . . . . . . . . . Miscellaneous . | . . . . . . . . . . . . . . . . . . . . . Route ------- -11/Scrapyard -10/Materials (discovered 5 exits: *Mat x3 / *Min x2) -10/Mines -9/Materials (discovered 3 exits: *Mat x2 / *Min) -9/Mines (discovered 3 exits: *Mat x2 / *Exi) -9/Exiles (discovered 2 exits: *Min x2) -8/Mines -8/Materials (discovered 2 exits: *Sto x2) -8/Storage (discovered 2 exits: *Fac / [*Rec]) -7/Factory (discovered 4 exits: *Fac x4) -6/Factory (discovered 2 exits: *Low x2) -6/Lower Caves -6/Lower Caves -6/Zion -5/Proximity Caves -5/Factory (discovered 2 exits: *Upp / *Ext) -5/Extension (discovered 2 exits: *Fac / *Cet) -5/Cetus (discovered 2 exits: *Fac / *Arc) -5/Archives (discovered 3 exits: *Fac / *Hub x2) -5/Hub_04(d) (discovered 2 exits: *Fac x2) -4/Factory History --------- Turn | Location | Event 15 | -11/Scrapyard | Discovered new exit (range 16) 87 | -11/Scrapyard | Entered Materials 154 | -10/Materials | Discovered new exit (range 7) 247 | -10/Materials | Discovered new exit (range 15) 316 | -10/Materials | Build established: Mutant 424 | -10/Materials | Discovered new exit (range 16) 769 | -10/Materials | Discovered new exit (range 4) 841 | -10/Materials | Discovered new exit (range 11) 1068 | -10/Materials | Entered Mines 1119 | -10/Mines | Found a hidden stash of uninstalled traps 1137 | -10/Mines | Core integrity fell below 50% 1386 | -10/Mines | Met a Derelict shopkeep closing up shop 1600 | -10/Mines | Core integrity fell below 20% 1818 | -10/Mines | Discovered new exit (range 5) 1916 | -10/Mines | Entered Materials 1916 | -9/Materials | Evolved 2 slots: Propulsion x1, Utility x1 1917 | -9/Materials | Identified exit to Mines 2913 | -9/Materials | Build established: Scavenger-Mutant 2990 | -9/Materials | Discovered new exit (range 15) 3489 | -9/Materials | Lost 3 parts (1p2n) 3788 | -9/Materials | Repaired Hvy. Armor Plating? 3954 | -9/Materials | Discovered new exit (range 13) 4165 | -9/Materials | Entered Mines 4336 | -9/Mines | Discovered new exit (range 3) 4377 | -9/Mines | Found a damaged Exp. Sensor Array with a note attached 4382 | -9/Mines | Found Prototype Device 4402 | -9/Mines | Learned location of Zion (-6) 4470 | -9/Mines | Lost 3 parts (1n1u1w) 4880 | -9/Mines | Discovered new exit (range 18) 4933 | -9/Mines | Deemed a non-threat by the Exiles lab entrance 5383 | -9/Mines | Discovered new exit (range 5) 5388 | -9/Mines | Entered Exiles 5389 | -9/Exiles | Identified exit to Mines 5404 | -9/Exiles | Discovered exit to Mines (range 16) 5422 | -9/Exiles | Met 8R-AWN 5438 | -9/Exiles | Met EX-HEX 5484 | -9/Exiles | Met EX-DEC 5514 | -9/Exiles | Met EX-BIN 5534 | -9/Exiles | Aligned with FarCom system 5535 | -9/Exiles | Given EX-Vault access code 5564 | -9/Exiles | Opened EX-Vault 5573 | -9/Exiles | Found Longsword +1 5602 | -9/Exiles | Warned to stay clear of 0b10 Research branches 5862 | -9/Exiles | Found AWS/Gauss 6914 | -9/Exiles | Attacked by the Exiles 7048 | -9/Exiles | Destroyed 8R-AWN 7055 | -9/Exiles | Found Prototype Ballistic Gun 7063 | -9/Exiles | Identified 8R-AWN's Boregun 7064 | -9/Exiles | Identified Exp. Sensor Array 7078 | -9/Exiles | Lost 3 parts (1p1n1u) 7110 | -9/Exiles | Core integrity fell below 50% 7250 | -9/Exiles | Destroyed EX-BIN 7283 | -9/Exiles | Destroyed EX-DEC 7523 | -9/Exiles | Found XL Autogun Array 8117 | -9/Exiles | Destroyed EX-HEX 8404 | -9/Exiles | Found Deploy-a-Sentry 9044 | -9/Exiles | Stole four prototypes: AWS/Gauss, XL Autogun Array, Longsword +1, Deploy-a-Sentry 9044 | -9/Exiles | Entered Mines 9267 | -8/Mines | Lost 3 parts (2n1u) 10360 | -8/Mines | Discovered new exit (range 9) 10374 | -8/Mines | Entered Materials 10374 | -8/Materials | Evolved 2 slots: Propulsion x1, Utility x1 10383 | -8/Materials | Discovered new exit (range 15) 10509 | -8/Materials | Repaired Hvy. Assault Rifle 10893 | -8/Materials | Identified exit to Storage 10993 | -8/Materials | Destroyed 7 combat bots 11238 | -8/Materials | Garrison activated, responded to threat 11271 | -8/Materials | Lost 3 parts (3n) 11305 | -8/Materials | Entered Storage 12078 | -8/Storage | Used back door to open Recycling access 12078 | -8/Storage | Discovered new exit (range 5) 12156 | -8/Storage | Garrison activated, responded to threat 13054 | -8/Storage | Discovered new exit (range 7) 13069 | -8/Storage | Entered Factory 13069 | -7/Factory | Evolved 2 slots: Utility x2 13320 | -7/Factory | Repaired Hvy. Armor Plating 13914 | -7/Factory | Cargo convoy interrupted 14915 | -7/Factory | Identified exit to Factory 15366 | -7/Factory | Lost 3 parts (3u) 15376 | -7/Factory | Entered another Factory area 15376 | -6/Factory | Evolved 2 slots: Utility x1, Weapon x1 15401 | -6/Factory | Identified exit to Lower Caves 15407 | -6/Factory | Lost 3 parts (1n2u) 15765 | -6/Factory | Lost 3 parts (1p2n) 15927 | -6/Factory | Repaired Missile Launcher 15930 | -6/Factory | System corruption reached 10% 16730 | -6/Factory | Build established: Mutant 16896 | -6/Factory | Entered Lower Caves 17125 | -6/Lower Caves | Learned 4 Factory zone layouts 17493 | -6/Lower Caves | Destroyed 8 combat bots 17723 | -6/Lower Caves | Learned 4 Factory zone layouts 18031 | -6/Lower Caves | Discovered new exit (range 12) 18057 | -6/Lower Caves | Entered another Lower Caves area 18057 | -6/Lower Caves | Spotted TK-A7O(f) 18057 | -6/Lower Caves | Spotted 8S-JZ4(f) 18058 | -6/Lower Caves | Encountered a Master Thief 18058 | -6/Lower Caves | Encountered a Master Thief 18058 | -6/Lower Caves | XL Autogun Array stolen by Master Thief 18059 | -6/Lower Caves | Destroyed 8S-JZ4(f) 18062 | -6/Lower Caves | Destroyed TK-A7O(f) 18151 | -6/Lower Caves | Learned Factory garrison access intel 19302 | -6/Lower Caves | Discovered new exit (range 16) 19338 | -6/Lower Caves | Entered Zion 19483 | -6/Zion | Received a visual enhancement algorithm 19581 | -6/Zion | System corruption cleaned by Quarantine Array 19626 | -6/Zion | Build established: Gladiator 19655 | -6/Zion | Discovered new exit (range 14) 20015 | -6/Zion | Learned 12 Factory zone layouts 21432 | -6/Zion | Found CR-A16's Pointy Stick 21533 | -6/Zion | Imprinted 21536 | -6/Zion | Declared Zion's savior 22155 | -6/Zion | Build established: Mutant 22199 | -6/Zion | Entered Proximity Caves 22199 | -5/Proximity Caves | Accompanied by 4 allies 22599 | -5/Proximity Caves | Spotted B-75 Beast 22619 | -5/Proximity Caves | Destroyed B-75 Beast 22892 | -5/Proximity Caves | Lost 3 parts (1n1u1w) 22907 | -5/Proximity Caves | Entered a huge 0b10 base via the front door 22941 | -5/Proximity Caves | Spotted B-75 Beast 22961 | -5/Proximity Caves | Revealed the true nature of CR-A16's Pointy Stick 22964 | -5/Proximity Caves | Destroyed B-75 Beast 23327 | -5/Proximity Caves | Fabricated Hvy. Armor Plating (x1) 23438 | -5/Proximity Caves | Build established: Scavenger-Tank 23483 | -5/Proximity Caves | Discovered new exit (range 16) 23714 | -5/Proximity Caves | Entered Factory 23714 | -5/Factory | Accompanied by 6 allies 23714 | -5/Factory | Evolved 2 slots: Utility x2 23715 | -5/Factory | Identified exit to Upper Caves 23715 | -5/Factory | Identified exit to Extension 23716 | -5/Factory | Loaded intel: 4 garrison access locations 23816 | -5/Factory | Garrison activated, responded to threat 23825 | -5/Factory | Found Prototype Launcher 24115 | -5/Factory | Garrison activated, responded to threat 24172 | -5/Factory | Zion Light squad teleported in 24192 | -5/Factory | Entered Extension 24192 | -5/Extension | Accompanied by 3 allies 24279 | -5/Extension | Found Prototype Protection 24391 | -5/Extension | Zion Heavy Resupply teleported in 24398 | -5/Extension | Identified Tesla Bomb Launcher 24401 | -5/Extension | Identified Zio. Weapon Casing 24600 | -5/Extension | Retrieved Zion intel report: Guard Positions 24629 | -5/Extension | Retrieved Zion intel report: Unaware Analyses 24727 | -5/Extension | Retrieved Zion intel report: Prototype Stockpiles 24841 | -5/Extension | Spotted B-75 Beast 25392 | -5/Extension | Build established: Scavenger-Skirmisher 25585 | -5/Extension | Spotted B-75 Beast 25607 | -5/Extension | Destroyed B-75 Beast 25660 | -5/Extension | Lost 6 parts (1p3n1u1w) 25664 | -5/Extension | Destroyed B-75 Beast 25675 | -5/Extension | Terminal network hard line cut 26367 | -5/Extension | Disrupted transfer network 26565 | -5/Extension | Lost 3 parts (1n2u) 26583 | -5/Extension | DAS Turret deployed 26640 | -5/Extension | Lost 11 parts (1p2n4u4w) 26642 | -5/Extension | Found Zio. Weapon Casing 26672 | -5/Extension | System corruption reached 10% 26790 | -5/Extension | Lost 5 parts (3n2u) 27041 | -5/Extension | Build established: Scavenger-Tank 27192 | -5/Extension | First assault squad dispatched 27501 | -5/Extension | Discovered new exit (range 10) 27503 | -5/Extension | Discovered new exit (range 6) 27572 | -5/Extension | Door terminal overloaded 27573 | -5/Extension | Rescued a captive Derelict 27877 | -5/Extension | Build established: Scavenger-Mutant 29659 | -5/Extension | Rescued A7 29745 | -5/Extension | Rescued a captive Derelict 29748 | -5/Extension | Rescued a captive Derelict 30849 | -5/Extension | Rescued a captive Derelict 30852 | -5/Extension | Rescued a captive Derelict 31072 | -5/Extension | Build established: Scavenger-Assassin 31411 | -5/Extension | Disrupted transfer network 31574 | -5/Extension | Identified exit to Cetus 31635 | -5/Extension | Entered Cetus 31635 | -5/Cetus | Accompanied by 4 allies (A7) 31640 | -5/Cetus | Acquired a Cetus Manufacturing Module code from A7 31659 | -5/Cetus | Spotted Cetus Guard 31659 | -5/Cetus | Spotted Cetus Guard 31659 | -5/Cetus | Spotted Cetus Guard 31666 | -5/Cetus | Spotted Cetus Guard 31667 | -5/Cetus | Allies destroyed Cetus Guard 31671 | -5/Cetus | Destroyed Cetus Guard 31677 | -5/Cetus | Allies destroyed Cetus Guard 31677 | -5/Cetus | Allies destroyed Cetus Guard 31763 | -5/Cetus | Retrieved Zion intel report: Component Schematics 31764 | -5/Cetus | Zion Kinetic Resupply teleported in 31801 | -5/Cetus | Cetus Manufacturing Module disabled 32042 | -5/Cetus | System corruption reached 30% 32076 | -5/Cetus | Discovered new exit (range 21) 32081 | -5/Cetus | Build established: Scavenger-Mutant 32134 | -5/Cetus | Spotted Cetus Guard 32134 | -5/Cetus | Spotted Cetus Guard 32135 | -5/Cetus | Spotted Cetus Guard 32139 | -5/Cetus | Discovered new exit (range 22) 32139 | -5/Cetus | Spotted Cetus Guard 32147 | -5/Cetus | Allies destroyed Cetus Guard 32149 | -5/Cetus | Core integrity fell below 50% 32150 | -5/Cetus | Destroyed Cetus Guard 32153 | -5/Cetus | Destroyed Cetus Guard 32156 | -5/Cetus | Destroyed Cetus Guard 32180 | -5/Cetus | Scared off Revision 17 32302 | -5/Cetus | Destroyed A7 32304 | -5/Cetus | Extracted ID and sensor layout for unrecognized location from A7's data core 32311 | -5/Cetus | Found Prototype Protection 32328 | -5/Cetus | Identified exit to Archives 32330 | -5/Cetus | Entered Archives 32435 | -5/Archives | Lost 3 parts (2u1w) 32446 | -5/Archives | Discovered new exit (range 22) 32501 | -5/Archives | Discovered new exit (range 20) 32519 | -5/Archives | Discovered new exit (range 22) 32903 | -5/Archives | Identified Med. Regenerative Plating 34087 | -5/Archives | Identified exit to Hub_04(d) 34089 | -5/Archives | Entered Hub_04(d) 34176 | -5/Hub_04(d) | Discovered new exit (range 22) 34243 | -5/Hub_04(d) | Build established: Scavenger-Tank 34347 | -5/Hub_04(d) | Discovered new exit (range 17) 34354 | -5/Hub_04(d) | Garrison activated, responded to threat 34612 | -5/Hub_04(d) | Lost 5 parts (1p2u2w) 34681 | -5/Hub_04(d) | Network Hub disabled 34681 | -5/Hub_04(d) | Network Hub disabled 34683 | -5/Hub_04(d) | Spotted Lightning 34684 | -5/Hub_04(d) | Spotted Lightning 34689 | -5/Hub_04(d) | First assault squad dispatched 34696 | -5/Hub_04(d) | Identified exit to Factory 34700 | -5/Hub_04(d) | Entered Factory 34700 | -4/Factory | Evolved 2 slots: Power x1, Propulsion x1 35649 | -4/Factory | Retrieved Zion intel report: Unaware Schematics 35978 | -4/Factory | First assault squad dispatched 36050 | -4/Factory | Lost 15 parts (5n4u6w) 36054 | -4/Factory | Core integrity fell below 50% 36056 | -4/Factory | Terminal network hard line cut 36085 | -4/Factory | System corruption reached 10% 36086 | -4/Factory | Garrison activated, responded to threat 36101 | -4/Factory | Core integrity fell below 20% 36120 | -4/Factory | Destroyed by Y-64 Sentinel with KE Penetrator Last Messages --------------- 36100_ Penetrated by Slug. 36101_ U-05 Engineer lays Concrete. 36103_ Penetrated by Slug. 36104_ U-05 Engineer builds a Wall. 36106_ System corrupted: Substantial component data lost. 36106_ Slug penetrates Earth. 36107_ The unstable cave ceiling collapses. 36108_ U-05 Engineer lays Concrete. 36109_ Slug penetrates Earth. 36110_ U-05 Engineer lays Concrete. 36111_ Acquired Antigrav System. 36112_ Slug penetrates Wall. 36113_ U-05 Engineer builds a Wall. 36114_ Penetrated by Slug. 36116_ U-05 Engineer lays Concrete. 36117_ Penetrated by Slug. 36117_ U-05 Engineer lays Concrete. 36118_ Acquired Mic. Fission Core. 36119_ U-05 Engineer builds a Door. 36120_ Penetrated by Slug. Map ----- +----------------------------------------------------+ | ????????????????????????????? ????????????# | | ????????????????????????????? ????????????# | | ??????????????????????????### # #?##?????????### | | ????????????????????????### ????????????# | | ???????????????????????? # ############## | | ????????????????????????? % | | ????????????????????????? % %=% | | ????????????????????????? %! | | ????????????????????????? # ###/####### | | ???????############??????## # ??###! | | ??????? ?????# ##! # # ] = ""????# | | ?????? #####;##%* % # ]] ""????# | | ?????? # ! # ##]] """ #?# | | ?????? # ### ??# | | ?????? # # # ????# | | ?????? # # # """Y??????# | | ????? # ![! # """"??????# | | ???????? # ! [[ #???????????# | | ??????####### # +### ! ################ | | ??????# u ! | | ??????+ | | ??????# % | | ??????# % [ # ##"############ ## | | ??????# *![ p ####?????????# | | ??????# ### # % ##?########## | | ????""" # *=@ #?# *] | | ????? # # #?# ! = [ | | ??????+ #?# % * = | | ??????# # % #?# | | ??????# ?# #?# """"T""" | | ??????# ??# ! """Y""" #?# """"""""" | | ?????? ???# """G""" #?############ | | ??????? ?????###################????????????## | | ??????????????????????????????????????????????### | | ?????????????????????????????????????????????????# | | ?????????????????????????????????????????????????? | | ?????????????????????????????????????????????????? | | ?????????????????????????????????????????????????? | | ?????????????????????????????????????????????????? | | ?????????????????????????????????????????????????? | | ?????????????????????????????????????????????????? | | ?????????????????????????????????????????????????? | | ?????????????????????????????????????????????????? | | ?????????????????????????????????????????????????? | | ?????????????????????????????????????????????????? | | ?????????????????????????????????????????????????? | | ?????????????????????????????????????????????????? | | ?????????????????????????????????????????????????? | | ?????????????????????????????????????????????????? | | ?????????????????????????????????????????????????? | +----------------------------------------------------+ Best States ------------- Heat Dissipation 97 Energy Generation 38 Energy Capacity 420 Matter Stores 300 Matter Capacity 300 Sight Range 22 Robot Scan Range 20 Terrain Scan Density 10 Jamming Range 16 Armor Coverage 1425 Resistance: KI 30 Resistance: EX 25 Utility Shielding 66 Weapon Shielding 100 Melee Speed Boost 40 Evasion (%) 55 Targeting Accuracy 8 Melee Accuracy 24 Recoil Reduction 5 Defensive Hacking 10 Authchip Count 2 Item Schematics ----------------- Hvy. Armor Plating | -9/Materials | Scanalyzed Beamcaster | -9/Materials | Scanalyzed Sml. Storage Unit | -9/Materials | Scanalyzed Spread Laser | -9/Materials | Extracted Overload Amplifier | -6/Zion | Archive Thermal Shield | -6/Zion | Archive Spk. Medium Treads | -6/Zion | Archive Mass Driver | -6/Zion | Archive Mak. Terrain Scanner | -6/Zion | Archive Imp. Transmission Jammer | -6/Zion | Archive Imp. Kinecellerator | -6/Zion | Archive Imp. Particle Charger | -6/Zion | Archive Disruptor Cannon | -6/Zion | Archive Falx | -6/Zion | Archive Imp. Core Analyzer | -6/Zion | Archive Adv. Heat Sink | -6/Zion | Archive Adv. Plasma Cannon | -6/Zion | Archive Imp. Trap Scanner | -6/Zion | Archive Adv. Coolant Injector | -6/Zion | Archive Gyrokinetic Inverter | -5/Cetus | Z-intel EM Shield | -5/Cetus | Z-intel Huge Storage Unit | -5/Cetus | Z-intel Imp. Cryofiber Web | -5/Cetus | Z-intel Adv. Melee Analysis Suite | -5/Cetus | Z-intel Neutron Cannon | -5/Cetus | Z-intel Lrg. Matter Pod | -5/Cetus | Z-intel Com. Wheel | -5/Cetus | Z-intel Lrn. Proton Cannon | -5/Cetus | Z-intel Enh. Gauss Cannon | -5/Cetus | Z-intel Med. Storage Unit | -5/Cetus | Z-intel Adv. Targeting Computer | -5/Cetus | Z-intel Centrium Heavy Treads | -4/Factory | Scanalyzed Robot Schematics ------------------ T-07 Excavator | -6/Zion | Archive Y-54 Guardian | -6/Zion | Archive C-57 Dissector | -6/Zion | Archive A-02 Transporter | -4/Factory | Z-intel H-77 Assassin | -4/Factory | Z-intel X-77 Beamer | -4/Factory | Z-intel Fabricated ------------ Hvy. Armor Plating | x1 | -5/Proximity Caves Alien Tech Used ----------------- None Achievements -------------- It Was An Accident, I Swear Just Shoot The Terminal What Is This Thing? Challenges ------------ None Game ------ Seed SingularityBiomechanicalClaw Manual? 0 Play Time 05:34:54 Cumulative 117.5 hours Start 2021.10.28 @ 16:57:17 End 2021.11.12 @ 20:01:51 Sessions 3 Manual Loads 0 Difficulty Rogue Special Mode None Game No. 77 Rogue 56 Adventurer 13 Explorer 8 Win Type - Total 4 Types 3/0/1/0/0/0/0/0/0 Lore% 74 Gallery% 71 Achievement% 56 Wizard Run 0 Options --------- ASCII 0 Keyboard 0 Movement Numpad Keybinds 0 Fullscreen 2 Font 18/SmallcapsGlow Map View 76x50 Tactical HUD 1 Map Filters NONE Filters NONE Steam 1 RUN: 382eaddf-fac7-45b3-a582-d2230b22f372